fUSD/lending_fUSD_20240329
["ID","MTS","AMOUNT","RATE_DAILY","PERIOD"]
[320942096,1711720239397,-500.0,0.00049315,120]
[320942097,1711720239408,-627.18,0.00049315,120]
[320942098,1711720239418,-514.15056645,0.00049315,120]
[320942099,1711720239427,-500.0,0.00049315,120]
[320942100,1711720239437,-714.94,0.00049315,120]
[320942101,1711720239447,-517.34216125,0.00049315,120]
[320942102,1711720239458,-500.0,0.00049315,120]
[320942103,1711720239468,-500.0,0.00049315,120]
[320942104,1711720239477,-500.0,0.00049315,120]
[320942105,1711720239487,-538.01,0.00049315,120]
[320942106,1711720239496,-500.0,0.00049315,120]
[320942107,1711720239505,-500.0,0.00049315,120]
[320942108,1711720239514,-1007.7,0.00049315,120]
[320942109,1711720239525,-160.91784074,0.00049315,120]
[320942110,1711720239535,-500.0,0.00049315,120]
[320942111,1711720239545,-500.0,0.00049315,120]
[320942112,1711720239555,-686.37,0.00049315,120]
[320942113,1711720239565,-500.0,0.00049315,120]
[320942114,1711720239576,-500.0,0.00049315,120]
[320942115,1711720239586,-500.0,0.00049315,120]
[320942116,1711720239596,-500.0,0.00049315,120]
[320942117,1711720239605,-500.0,0.00049315,120]
[320942118,1711720239614,-501.94970516,0.00049315,120]
[320942119,1711720239625,-500.0,0.00049315,120]
[320942120,1711720239634,-500.0,0.00049315,120]
[320942121,1711720239643,-508.81421459,0.00049315,120]
[320942122,1711720239652,-500.0,0.00049315,120]
[320942123,1711720239661,-982.95,0.00049315,120]
[320942124,1711720239671,-500.0,0.00049315,120]
[320942125,1711720239680,-515.9036424,0.00049315,120]
[320942126,1711720239689,-506.10892577,0.00049315,120]
[320942127,1711720239699,-500.0,0.00049315,120]
[320942128,1711720239708,-500.0,0.00049315,120]
[320942129,1711720239717,-500.0,0.00049315,120]
[320942130,1711720239726,-500.0,0.00049315,120]
[320942131,1711720239736,-500.0,0.00049315,120]
[320942132,1711720239745,-500.0,0.00049315,120]
[320942133,1711720239754,-500.0,0.00049315,120]
[320942134,1711720239763,-500.0,0.00049315,120]
[320942135,1711720239773,-500.0,0.00049315,120]
[320942136,1711720239782,-500.0,0.00049315,120]
[320942137,1711720239791,-500.0,0.00049315,120]
[320942138,1711720239800,-500.0,0.00049315,120]
[320942139,1711720239809,-500.0,0.00049315,120]
[320942140,1711720239818,-500.0,0.00049315,120]
[320942141,1711720239828,-500.0,0.00049315,120]
[320942142,1711720239837,-500.0,0.00049315,120]
[320942143,1711720239847,-500.0,0.00049315,120]
[320942144,1711720239856,-500.0,0.00049315,120]
[320942145,1711720239865,-500.0,0.00049315,120]
[320942146,1711720239876,-500.0,0.00049315,120]
[320942147,1711720239884,-500.0,0.00049315,120]
[320942148,1711720239894,-511.54989337,0.00049315,120]
[320942149,1711720239903,-500.0,0.00049315,120]
[320942150,1711720239912,-514.07159408,0.00049315,120]
[320942151,1711720239921,-500.0,0.00049315,120]
[320942152,1711720239930,-500.0,0.00049315,120]
[320942153,1711720239939,-500.0,0.00049315,120]
[320942154,1711720239948,-500.0,0.00049315,120]
[320942155,1711720239957,-500.0,0.00049315,120]
[320942156,1711720239966,-500.0,0.00049315,120]
[320942157,1711720239975,-500.0,0.00049315,120]
[320942158,1711720239984,-500.0,0.00049315,120]
[320942159,1711720239992,-500.0,0.00049315,120]
[320942160,1711720240002,-500.0,0.00049315,120]
[320942161,1711720240011,-500.0,0.00049315,120]
[320942162,1711720240020,-500.0,0.00049315,120]
[320942163,1711720240029,-541.57012991,0.00049315,120]
[320942164,1711720240038,-500.0,0.00049315,120]
[320942165,1711720240047,-501.67739848,0.00049315,120]
[320942166,1711720240055,-500.0,0.00049315,120]
[320942167,1711720240065,-500.0,0.00049315,120]
[320942168,1711720240074,-774.88,0.00049315,120]
[320942169,1711720240083,-500.0,0.00049315,120]
[320942170,1711720240091,-509.51763219,0.00049315,120]
[320942171,1711720240100,-508.48545198,0.00049315,120]
[320942172,1711720240109,-504.11148672,0.00049315,120]
[320942173,1711720240119,-500.0,0.00049315,120]
[320942174,1711720240130,-518.14301987,0.00049315,120]
[320942175,1711720240139,-508.70009111,0.00049315,120]
[320942176,1711720240148,-500.0,0.00049315,120]
[320942177,1711720240157,-500.0,0.00049315,120]
[320942178,1711720240167,-500.0,0.00049315,120]
[320942179,1711720240177,-500.0,0.00049315,120]
[320942180,1711720240187,-500.0,0.00049315,120]
[320942181,1711720240197,-500.0,0.00049315,120]
[320942182,1711720240206,-500.0,0.00049315,120]
[320942183,1711720240215,-508.79058874,0.00049315,2]
[320942184,1711720240225,-500.0,0.00049315,120]
[320942185,1711720240234,-500.0,0.00049315,120]
[320942186,1711720240243,-500.0,0.00049315,120]
[320942187,1711720240252,-500.0,0.00049315,120]
[320942188,1711720240261,-582.64163442,0.00049315,120]
[320942189,1711720240271,-500.0,0.00049315,120]
[320942190,1711720240280,-500.0,0.00049315,120]
[320942191,1711720240289,-500.0,0.00049315,120]
[320942192,1711720240298,-500.0,0.00049315,120]
[320942193,1711720240307,-679.79,0.00049315,120]
[320942194,1711720240316,-525.1697661,0.00049315,120]
[320942195,1711720240325,-500.0,0.00049315,120]
[320942196,1711720240334,-500.0,0.00049315,120]
[320942197,1711720240344,-509.42416035,0.00049315,120]
[320942198,1711720240353,-500.0,0.00049315,120]
[320942200,1711720240362,-500.0,0.00049315,120]
[320942201,1711720240376,-500.0,0.00049315,120]
[320942202,1711720240386,-505.50947751,0.00049315,120]
[320942203,1711720240395,-500.0,0.00049315,120]
[320942204,1711720240405,-505.07774812,0.00049315,120]
[320942205,1711720240414,-502.33848273,0.00049315,120]
[320942206,1711720240423,-500.0,0.00049315,120]
[320942207,1711720240433,-500.0,0.00049315,120]
[320942208,1711720240441,-500.0,0.00049315,120]
[320942209,1711720240450,-500.0,0.00049315,120]
[320942210,1711720240459,-500.0,0.00049315,7]
[320942211,1711720240468,-500.0,0.00049315,120]
[320942212,1711720240477,-500.0,0.00049315,120]
[320942213,1711720240486,-533.3056286,0.00049315,4]
[320942214,1711720240495,-508.25655514,0.00049315,120]
[320942215,1711720240504,-500.0,0.00049315,120]
[320942216,1711720240513,-500.0,0.00049315,120]
[320942217,1711720240523,-500.0,0.00049315,120]
[320942218,1711720240532,-500.0,0.00049315,120]
[320942219,1711720240542,-505.0428754,0.00049315,120]
[320942220,1711720240673,-500.0,0.00049315,120]
[320942221,1711720240683,-500.0,0.00049315,120]
[320942222,1711720240692,-500.0,0.00049315,120]
[320942223,1711720240702,-853.69,0.00049315,120]
[320942224,1711720240712,-500.0,0.00049315,120]
[320942225,1711720240721,-500.0,0.00049315,120]
[320942226,1711720240731,-500.0,0.00049315,120]
[320942227,1711720240740,-500.0,0.00049315,120]
[320942228,1711720240749,-500.0,0.00049315,120]
[320942229,1711720240758,-500.0,0.00049315,120]
[320942230,1711720240767,-500.0,0.00049315,120]
[320942231,1711720240776,-503.62608766,0.00049315,120]
[320942232,1711720240785,-500.0,0.00049315,120]
[320942233,1711720240794,-896.8,0.00049315,120]
[320942234,1711720240804,-506.85159065,0.00049315,120]
[320942235,1711720240813,-786.23,0.00049315,120]
[320942236,1711720240822,-352.79972245,0.00049315,120]
[320942237,1711720240832,-500.0,0.00049315,120]
[320942238,1711720240841,-522.53,0.00049315,120]
[320942239,1711720240850,-500.0,0.00049315,120]
[320942240,1711720240859,-500.0,0.00049315,120]
[320942241,1711720240869,-500.0,0.00049315,120]
[320942242,1711720240880,-500.0,0.00049315,120]
[320942243,1711720240889,-500.0,0.00049315,120]
[320942244,1711720240898,-504.42649784,0.00049315,120]
[320942245,1711720240907,-500.0,0.00049315,120]
[320942246,1711720240915,-500.0,0.00049315,120]
[320942247,1711720240924,-500.0,0.00049315,120]
[320942248,1711720240934,-500.0,0.00049315,120]
[320942249,1711720240944,-500.0,0.00049315,120]
[320942250,1711720240953,-500.0,0.00049315,120]
[320942251,1711720240962,-594.23,0.00049315,120]
[320942252,1711720240972,-500.0,0.00049315,120]
[320942253,1711720240981,-500.0,0.00049315,120]
[320942254,1711720240991,-500.0,0.00049315,120]
[320942255,1711720241000,-9880.52,0.00049315,120]
[320942256,1711720241009,-1749.42,0.00049315,120]
[320942257,1711720241018,-500.0,0.00049315,120]
[320942258,1711720241027,-500.0,0.00049315,120]
[320942259,1711720241037,-508.85557387,0.00049315,120]
[320942260,1711720241046,-500.0,0.00049315,120]
[320942261,1711720241056,-500.0,0.00049315,120]
[320942262,1711720241065,-503.96194548,0.00049315,120]
[320942263,1711720241074,-500.0,0.00049315,120]
[320942264,1711720241084,-500.0,0.00049315,120]
[320942265,1711720241093,-519.79417655,0.00049315,120]
[320942266,1711720241103,-500.0,0.00049315,120]
[320942267,1711720241113,-500.0,0.00049315,120]
[320942268,1711720241123,-500.0,0.00049315,120]
[320942269,1711720241133,-500.0,0.00049315,120]
[320942270,1711720241142,-573.33,0.00049315,120]
[320942271,1711720241152,-500.0,0.00049315,120]
[320942272,1711720241161,-500.0,0.00049315,120]
[320942273,1711720241171,-500.0,0.00049315,120]
[320942274,1711720241181,-500.0,0.00049315,120]
[320942275,1711720241190,-500.0,0.00049315,120]
[320942276,1711720241200,-500.0,0.00049315,120]
[320942277,1711720241209,-500.0,0.00049315,120]
[320942278,1711720241219,-507.01882768,0.00049315,120]
[320942279,1711720241228,-500.0,0.00049315,120]
[320942280,1711720241237,-500.0,0.00049315,120]
[320942281,1711720241247,-500.0,0.00049315,120]
[320942282,1711720241257,-500.0,0.00049315,120]
[320942283,1711720241267,-512.31,0.00049315,120]
[320942284,1711720241277,-500.0,0.00049315,120]
[320942285,1711720241286,-500.0,0.00049315,120]
[320942286,1711720241296,-502.78761404,0.00049315,120]
[320942287,1711720241305,-510.39417788,0.00049315,120]
[320942288,1711720241315,-500.0,0.00049315,120]
[320942289,1711720241326,-500.0,0.00049315,120]
[320942290,1711720241335,-500.0,0.00049315,120]
[320942291,1711720241345,-500.0,0.00049315,120]
[320942292,1711720241355,-506.37129504,0.00049315,120]
[320942293,1711720241365,-204.97781118,0.00049315,120]
[320942294,1711720241381,-500.0,0.00049315,120]
[320942295,1711720241391,-500.0,0.00049315,120]
[320942296,1711720241400,-511.94469966,0.00049315,120]
[320942297,1711720241409,-500.0,0.00049315,120]
[320942298,1711720241420,-507.03098204,0.00049315,120]
[320942299,1711720241430,-504.96427671,0.00049315,120]
[320942300,1711720241439,-500.0,0.00049315,120]
[320942301,1711720241448,-500.0,0.00049315,120]
[320942302,1711720241458,-500.0,0.00049315,120]
[320942303,1711720241468,-500.0,0.00049315,120]
[320942304,1711720241476,-500.0,0.00049315,120]
[320942305,1711720241486,-500.0,0.00049315,120]
[320942306,1711720241495,-500.0,0.00049315,120]
[320942307,1711720241504,-505.67551193,0.00049315,120]
[320942308,1711720241513,-500.0,0.00049315,120]
[320942309,1711720241523,-500.0,0.00049315,120]
[320942310,1711720241532,-500.0,0.00049315,120]
[320942311,1711720241542,-500.0,0.00049315,120]
[320942312,1711720241551,-174.81189889,0.00049315,120]
[320942313,1711720241561,-500.0,0.00049315,120]
[320942314,1711720241571,-500.75706891,0.00049315,120]
[320942315,1711720241581,-545.68,0.00049315,120]
[320942316,1711720241591,-500.0,0.00049315,120]
[320942317,1711720241602,-500.0,0.00049315,120]
[320942318,1711720241612,-500.0,0.00049315,120]
[320942319,1711720241621,-503.28473079,0.00049315,120]
[320942320,1711720241640,-500.0,0.00049315,120]
[320942321,1711720241651,-500.0,0.00049315,120]
[320942322,1711720241661,-500.0,0.00049315,120]
[320942323,1711720241671,-308.40172798,0.00049315,120]
[320942324,1711720241681,-508.0501297,0.00049315,120]
[320942325,1711720241690,-506.26324793,0.00049315,120]
[320942326,1711720241700,-500.0,0.00049315,120]
[320942327,1711720241709,-500.0,0.00049315,120]
[320942328,1711720241718,-500.0,0.00049315,80]
[320942329,1711720241728,-500.0,0.00049315,120]
[320942330,1711720241737,-500.0,0.00049315,120]
[320942331,1711720241748,-500.0,0.00049315,120]
[320942332,1711720241757,-500.0,0.00049315,120]
[320942333,1711720241767,-500.0,0.00049315,120]
[320942334,1711720241777,-1990.61,0.00049315,120]
[320942335,1711720241787,-512.19869848,0.00049315,120]
[320942336,1711720241796,-500.0,0.00049315,120]
[320942337,1711720241806,-500.0,0.00049315,120]
[320942338,1711720241815,-500.0,0.00049315,120]
[320942339,1711720241824,-500.0,0.00049315,120]
[320942340,1711720241833,-500.0,0.00049315,120]
[320942341,1711720241843,-500.0,0.00049315,120]
[320942342,1711720241852,-500.0,0.00049315,120]
[320942343,1711720241861,-500.0,0.00049315,120]
[320942344,1711720241870,-1229.22,0.00049315,120]
[320942345,1711720241888,-500.0,0.00049315,120]
[320942346,1711720241897,-500.0,0.00049315,120]
[320942347,1711720241906,-817.16,0.00049315,120]
[320942348,1711720241916,-514.55055664,0.00049315,120]
[320942349,1711720241925,-500.0,0.00049315,120]
[320942350,1711720241935,-511.7422073,0.00049315,120]
[320942351,1711720241945,-500.0,0.00049315,120]
[320942352,1711720241954,-500.0,0.00049315,120]
[320942353,1711720241964,-500.0,0.00049315,120]
[320942354,1711720241973,-500.0,0.00049315,120]
[320942355,1711720241983,-500.0,0.00049315,120]
[320942356,1711720241992,-500.0,0.00049315,120]
[320942357,1711720242001,-509.97738141,0.00049315,120]
[320942358,1711720242010,-500.0,0.00049315,120]
[320942359,1711720242020,-500.0,0.00049315,120]
[320942360,1711720242029,-150.0,0.00049315,120]
[320942361,1711720242039,-500.0,0.00049315,120]
[320942362,1711720242048,-506.87204432,0.00049315,120]
[320942363,1711720242058,-500.0,0.00049315,120]
[320942364,1711720242067,-553.19,0.00049315,120]
[320942365,1711720242076,-500.0,0.00049315,120]
[320942366,1711720242086,-770.3,0.00049315,120]
[320942367,1711720242095,-500.0,0.00049315,120]
[320942368,1711720242105,-500.0,0.00049315,120]
[320942369,1711720242115,-500.0,0.00049315,120]
[320942370,1711720242126,-4469.38,0.00049315,120]
[320942371,1711720242141,-500.0,0.00049315,120]
[320942372,1711720242150,-500.0,0.00049315,120]
[320942373,1711720242160,-510.70424136,0.00049315,120]
[320942374,1711720242171,-505.9080685,0.00049315,120]
[320942375,1711720242181,-500.0,0.00049315,120]
[320942376,1711720242192,-679.26,0.00049315,120]
[320942377,1711720242202,-512.5566513,0.00049315,120]
[320942378,1711720242213,-5091.57620437,0.00049315,120]
[320942379,1711720242223,-503.01502505,0.00049315,7]
[320942380,1711720242233,-500.0,0.00049315,120]
[320942382,1711720242244,-493.83467232,0.00049315,120]
[320942383,1711720242255,-296.41055645,0.00049315,120]
[320942384,1711720242267,-713.39,0.00049315,120]
[320942385,1711720242277,-500.0,0.00049315,120]
[320942387,1711720242287,-885.4,0.00049315,120]
[320942389,1711720242296,-500.0,0.00049315,120]
[320942390,1711720242305,-500.0,0.00049315,120]
[320942391,1711720242314,-500.0,0.00049315,120]
[320942393,1711720242324,-500.0,0.00049315,120]
[320942395,1711720242333,-514.40119454,0.00049315,120]
[320942397,1711720242343,-500.0,0.00049315,120]
[320942398,1711720242351,-500.0,0.00049315,120]
[320942399,1711720242360,-511.74159085,0.00049315,120]
[320942400,1711720242373,-502.80415764,0.00049315,120]
[320942401,1711720242388,-512.33265692,0.00049315,120]
[320942402,1711720242398,-500.0,0.00049315,120]
[320942403,1711720242407,-500.0,0.00049315,120]
[320942404,1711720242417,-500.0,0.00049315,120]
[320942405,1711720242426,-500.0,0.00049315,120]
[320942406,1711720242436,-500.0,0.00049315,120]
[320942407,1711720242444,-1238.51,0.00049315,120]
[320942408,1711720242455,-500.0,0.00049315,120]
[320942410,1711720242464,-500.0,0.00049315,120]
[320942411,1711720242474,-1635.01,0.00049315,120]
[320942412,1711720242484,-507.7745337,0.00049315,120]
[320942413,1711720242494,-500.0,0.00049315,120]
[320942414,1711720242503,-500.0,0.00049315,120]
[320942415,1711720242513,-576.18,0.00049315,120]
[320942416,1711720242522,-500.0,0.00049315,120]
[320942418,1711720242532,-500.0,0.00049315,60]
[320942420,1711720242542,-500.0,0.00049315,120]
[320942422,1711720242551,-500.0,0.00049315,120]
[320942424,1711720242560,-500.0,0.00049315,120]
[320942425,1711720242569,-500.0,0.00049315,120]
[320942426,1711720242579,-500.0,0.00049315,120]
[320942427,1711720242588,-855.16,0.00049315,120]
[320942428,1711720242598,-500.0,0.00049315,120]
[320942429,1711720242607,-500.0,0.00049315,120]
[320942430,1711720242616,-502.2365121,0.00049315,120]
[320942431,1711720242628,-531.08,0.00049315,120]
[320942432,1711720242641,-500.0,0.00049315,120]
[320942433,1711720242650,-500.0,0.00049315,120]
[320942434,1711720242659,-500.0,0.00049315,120]
[320942435,1711720242668,-519.53949794,0.00049315,120]
[320942436,1711720242678,-500.0,0.00049315,120]
[320942437,1711720242687,-500.0,0.00049315,120]
[320942438,1711720242697,-509.38279301,0.00049315,120]
[320942439,1711720242706,-500.0,0.00049315,120]
[320942440,1711720242715,-500.0,0.00049315,120]
[320942441,1711720242725,-500.0,0.00049315,120]
[320942442,1711720242735,-534.13,0.00049315,120]
[320942443,1711720242744,-508.39446813,0.00049315,120]
[320942444,1711720242753,-500.0,0.00049315,120]
[320942445,1711720242762,-605.01928714,0.00049315,120]
[320942446,1711720242771,-500.0,0.00049315,120]
[320942447,1711720242781,-6532.1,0.00049315,120]
[320942448,1711720242791,-523.64,0.00049315,120]
[320942449,1711720242801,-560.66,0.00049315,120]
[320942450,1711720242811,-500.0,0.00049315,120]
[320942451,1711720242820,-502.42,0.00049315,120]
[320942452,1711720242829,-500.0,0.00049315,120]
[320942453,1711720242838,-723.57,0.00049315,120]
[320942454,1711720242847,-1682.83,0.00049315,120]
[320942455,1711720242858,-513.73463759,0.00049315,120]
[320942456,1711720242867,-500.0,0.00049315,120]
[320942457,1711720242881,-502.76684124,0.00049315,120]
[320942458,1711720242890,-500.0,0.00049315,120]
[320942459,1711720242901,-510.00756818,0.00049315,120]
[320942460,1711720242910,-500.0,0.00049315,120]
[320942461,1711720242920,-500.0,0.00049315,120]
[320942462,1711720242929,-638.67,0.00049315,120]
[320942463,1711720242938,-503.68,0.00049315,120]
[320942464,1711720242947,-1618.73,0.00049315,120]
[320942465,1711720242956,-500.0,0.00049315,120]
[320942466,1711720242965,-500.0,0.00049315,120]
[320942467,1711720242974,-514.2792659,0.00049315,120]
[320942468,1711720242984,-506.35917147,0.00049315,120]
[320942469,1711720242993,-505.8863094,0.00049315,120]
[320942470,1711720243003,-500.0,0.00049315,120]
[320942471,1711720243013,-3551.69,0.00049315,120]
[320942472,1711720243023,-500.0,0.00049315,120]
[320942473,1711720243032,-500.0,0.00049315,120]
[320942474,1711720243041,-500.0,0.00049315,120]
[320942475,1711720243050,-520.58684068,0.00049315,120]
[320942476,1711720243059,-500.0,0.00049315,120]
[320942477,1711720243068,-1046.84,0.00049315,60]
[320942478,1711720243078,-500.0,0.00049315,120]
[320942479,1711720243087,-500.0,0.00049315,120]
[320942480,1711720243097,-500.0,0.00049315,120]
[320942481,1711720243106,-500.0,0.00049315,120]
[320942482,1711720243116,-1902.79,0.00049315,120]
[320942483,1711720243125,-500.0,0.00049315,120]
[320942484,1711720243140,-523.06,0.00049315,120]
[320942485,1711720243149,-500.0,0.00049315,120]
[320942486,1711720243160,-500.0,0.00049315,120]
[320942487,1711720243170,-500.0,0.00049315,120]
[320942488,1711720243179,-500.0,0.00049315,120]
[320942489,1711720243189,-500.0,0.00049315,120]
[320942490,1711720243198,-500.0,0.00049315,120]
[320942491,1711720243208,-500.0,0.00049315,120]
[320942492,1711720243218,-500.0,0.00049315,120]
[320942493,1711720243228,-783.41,0.00049315,120]
[320942494,1711720243238,-1110.8,0.00049315,120]
[320942495,1711720243249,-500.0,0.00049315,120]
[320942497,1711720243261,-500.0,0.00049315,120]
[320942499,1711720243271,-500.0,0.00049315,120]
[320942501,1711720243283,-392.90088857,0.00049315,120]
[320942503,1711720243293,-1000.0,0.00049315,120]
[320942514,1711720243428,-500.0,0.00049315,120]
[320942516,1711720243440,-516.74,0.00049315,120]
[320942518,1711720243451,-500.0,0.00049315,120]
[320942520,1711720243462,-500.0,0.00049315,120]
[320942522,1711720243474,-500.0,0.00049315,120]
[320942524,1711720243484,-728.83,0.00049315,21]
[320942526,1711720243496,-503.23494447,0.00049315,120]
[320942527,1711720243507,-500.0,0.00049315,120]
[320942528,1711720243518,-500.0,0.00049315,120]
[320942530,1711720243529,-559.75409597,0.00049315,120]
[320942531,1711720243540,-500.0,0.00049315,120]
[320942533,1711720243550,-500.0,0.00049315,120]
[320942535,1711720243561,-1108.05,0.00049315,120]
[320942537,1711720243572,-500.0,0.00049315,120]
[320942539,1711720243582,-516.12861278,0.00049315,120]
[320942541,1711720243593,-500.0,0.00049315,120]
[320942543,1711720243604,-500.0,0.00049315,120]
[320942545,1711720243614,-500.0,0.00049315,120]
[320942547,1711720243624,-500.0,0.00049315,120]
[320942549,1711720243641,-500.0,0.00049315,120]
[320942551,1711720243652,-500.0,0.00049315,120]
[320942553,1711720243661,-500.0,0.00049315,120]
[320942555,1711720243672,-500.0,0.00049315,120]
[320942557,1711720243681,-500.0,0.00049315,120]
[320942559,1711720243691,-500.0,0.00049315,120]
[320942561,1711720243702,-500.0,0.00049315,120]
[320942563,1711720243711,-282.82205472,0.00049315,120]
[320942565,1711720243721,-500.0,0.00049315,120]
[320942567,1711720243730,-988.84,0.00049315,120]
[320942569,1711720243740,-500.0,0.00049315,120]
[320942571,1711720243749,-500.0,0.00049315,120]
[320942573,1711720243759,-500.0,0.00049315,120]
[320942575,1711720243768,-500.0,0.00049315,120]
[320942577,1711720243778,-500.0,0.00049315,120]
[320942579,1711720243787,-627.93,0.00049315,120]
[320942580,1711720243796,-500.0,0.00049315,120]
[320942582,1711720243806,-507.10206926,0.00049315,120]
[320942585,1711720243815,-500.0,0.00049315,120]
[320942587,1711720243826,-500.0,0.00049315,120]
[320942589,1711720243835,-500.0,0.00049315,120]
[320942591,1711720243844,-500.0,0.00049315,120]
[320942592,1711720243853,-500.0,0.00049315,120]
[320942594,1711720243863,-500.0,0.00049315,120]
[320942596,1711720243872,-500.0,0.00049315,30]
[320942598,1711720243884,-500.0,0.00049315,120]
[320942600,1711720243893,-500.0,0.00049315,120]
[320942602,1711720243901,-500.0,0.00049315,120]
[320942604,1711720243910,-743.49,0.00049315,120]
[320942606,1711720243919,-500.0,0.00049315,2]
[320942609,1711720243929,-500.0,0.00049315,120]
[320942610,1711720243938,-500.0,0.00049315,120]
[320942613,1711720243951,-500.0,0.00049315,120]
[320942614,1711720243961,-500.0,0.00049315,120]
[320942617,1711720243970,-1845.14,0.00049315,120]
[320942619,1711720243980,-486.62165316,0.00049315,120]
[320942621,1711720243989,-500.0,0.00049315,120]
[320942622,1711720244000,-826.94,0.00049315,120]
[320942624,1711720244010,-517.26447023,0.00049315,120]
[320942627,1711720244019,-500.0,0.00049315,120]
[320942629,1711720244028,-500.0,0.00049315,120]
[320942630,1711720244037,-500.0,0.00049315,120]
[320942632,1711720244047,-500.0,0.00049315,120]
[320942635,1711720244056,-679.1,0.00049315,120]
[320942637,1711720244066,-838.3,0.00049315,120]
[320942639,1711720244075,-500.0,0.00049315,120]
[320942641,1711720244084,-2055.89,0.00049315,120]
[320942643,1711720244093,-500.0,0.00049315,120]
[320942645,1711720244102,-500.0,0.00049315,120]
[320942647,1711720244111,-500.0,0.00049315,120]
[320942648,1711720244121,-500.0,0.00049315,120]
[320942651,1711720244133,-500.0,0.00049315,120]
[320942653,1711720244142,-500.0,0.00049315,120]
[320942655,1711720244151,-500.0,0.00049315,120]
[320942657,1711720244160,-617.83,0.00049315,120]
[320942659,1711720244170,-500.0,0.00049315,120]
[320942661,1711720244180,-1240.17,0.00049315,120]
[320942663,1711720244189,-500.0,0.00049315,120]
[320942665,1711720244198,-508.40289345,0.00049315,120]
[320942667,1711720244207,-500.0,0.00049315,120]
[320942669,1711720244217,-500.0,0.00049315,120]
[320942670,1711720244226,-500.0,0.00049315,120]
[320942672,1711720244235,-504.33604223,0.00049315,120]
[320942674,1711720244244,-500.0,0.00049315,120]
[320942677,1711720244253,-500.0,0.00049315,120]
[320942679,1711720244263,-500.0,0.00049315,120]
[320942681,1711720244272,-500.0,0.00049315,120]
[320942683,1711720244281,-500.0,0.00049315,120]
[320942684,1711720244291,-500.0,0.00049315,120]
[320942686,1711720244299,-513.63858096,0.00049315,120]
[320942688,1711720244309,-500.0,0.00049315,120]
[320942690,1711720244318,-663.18,0.00049315,120]
[320942692,1711720244327,-500.0,0.00049315,120]
[320942694,1711720244335,-500.0,0.00049315,120]
[320942696,1711720244345,-505.73668183,0.00049315,2]
[320942698,1711720244355,-500.0,0.00049315,120]
[320942701,1711720244366,-500.0,0.00049315,120]
[320942703,1711720244376,-500.0,0.00049315,120]
[320942704,1711720244387,-500.0,0.00049315,120]
[320942707,1711720244397,-500.0,0.00049315,120]
[320942709,1711720244411,-500.0,0.00049315,120]
[320942710,1711720244420,-500.0,0.00049315,120]
[320942712,1711720244429,-500.0,0.00049315,120]
[320942714,1711720244438,-519.46839831,0.00049315,120]
[320942716,1711720244447,-500.0,0.00049315,120]
[320942719,1711720244457,-1451.79,0.00049315,120]
[320942721,1711720244466,-500.0,0.00049315,120]
[320942723,1711720244476,-500.0,0.00049315,120]
[320942725,1711720244486,-500.0,0.00049315,120]